fUST/lending_fUST_20250330
["ID","MTS","AMOUNT","RATE_DAILY","PERIOD"]
[356840422,1743315038591,-749.908684,0.00021917,2]
[356840423,1743315038601,-749.908684,0.00021917,2]
[356840424,1743315038610,-749.908684,0.00021917,2]
[356840425,1743315038619,-749.908684,0.00021917,2]
[356840426,1743315038629,-749.908684,0.00021917,2]
[356840427,1743315038638,-500.0,0.00021917,2]
[356840428,1743315038647,-749.908684,0.00021917,2]
[356840429,1743315038656,-533.93461472,0.00021917,2]
[356840430,1743315038665,-749.908684,0.00021917,2]
[356840431,1743315038674,-506.16292459,0.00021917,2]
[356840432,1743315038683,-749.908684,0.00021917,2]
[356840433,1743315038692,-749.908684,0.00021917,2]
[356840434,1743315038701,-749.908684,0.00021917,2]
[356840435,1743315038710,-749.90868068,0.00021917,2]
[356840436,1743315038719,-500.0,0.00021917,2]
[356840437,1743315038727,-501.7172029,0.00021917,2]
[356840438,1743315038736,-4037.38,0.00021917,2]
[356840439,1743315038745,-500.0,0.00021917,2]
[356840440,1743315038754,-500.0,0.00021917,2]
[356840441,1743315038764,-1914.97,0.00021917,2]
[356840442,1743315038773,-500.0,0.00021917,2]
[356840443,1743315038782,-1676.27,0.00021917,2]
[356840444,1743315038791,-500.0,0.00021917,2]
[356840445,1743315038800,-500.0,0.00021917,2]
[356840446,1743315038810,-500.0,0.00021917,2]
[356840447,1743315038820,-504.65994971,0.00021917,2]
[356840448,1743315038829,-1558.9,0.00021917,2]
[356840449,1743315038838,-500.0,0.00021917,2]
[356840450,1743315038847,-500.0,0.00021917,2]
[356840451,1743315038856,-500.0,0.00021917,2]
[356840452,1743315038866,-500.0,0.00021917,2]
[356840453,1743315038875,-1002.58,0.00021917,2]
[356840454,1743315038885,-989.21,0.00021917,2]
[356840455,1743315038894,-633.55,0.00021917,2]
[356840456,1743315038903,-500.0,0.00021917,2]
[356840457,1743315038912,-500.0,0.00021917,2]
[356840458,1743315038921,-631.57,0.00021917,2]
[356840459,1743315038930,-500.0,0.00021917,2]
[356840460,1743315038939,-500.0,0.00021917,2]
[356840461,1743315038948,-500.0,0.00021917,2]
[356840462,1743315038957,-500.0,0.00021917,2]
[356840463,1743315038966,-1338.33,0.00021917,2]
[356840464,1743315038976,-782.96,0.00021917,2]
[356840465,1743315038985,-5885.94,0.00021917,2]
[356840466,1743315038995,-545.6,0.00021917,2]
[356840467,1743315039004,-540.93699792,0.00021917,2]
[356840468,1743315039013,-500.0,0.00021917,2]
[356840469,1743315039022,-500.0,0.00021917,2]
[356840470,1743315039031,-5939.19,0.00021917,2]
[356840471,1743315039041,-500.0,0.00021917,2]
[356840472,1743315039051,-1026.34,0.00021917,2]
[356840473,1743315039060,-500.0,0.00021917,2]
[356840474,1743315039069,-500.0,0.00021917,2]
[356840475,1743315039079,-500.0,0.00021917,2]
[356840476,1743315039088,-500.0,0.00021917,2]
[356840477,1743315039098,-2611.84,0.00021917,2]
[356840478,1743315039107,-500.0,0.00021917,2]
[356840479,1743315039116,-1476.55,0.00021917,2]
[356840480,1743315039125,-500.0,0.00021917,2]
[356840481,1743315039135,-500.0,0.00021917,2]
[356840482,1743315039144,-500.0,0.00021917,2]
[356840483,1743315039153,-690.45,0.00021917,2]
[356840484,1743315039162,-500.0,0.00021917,2]
[356840485,1743315039175,-500.0,0.00021917,2]
[356840486,1743315039184,-500.0,0.00021917,2]
[356840487,1743315039193,-500.0,0.00021917,2]
[356840488,1743315039203,-500.0,0.00021917,2]
[356840489,1743315039213,-747.25,0.00021917,2]
[356840490,1743315039222,-500.0,0.00021917,2]
[356840491,1743315039232,-352.85589898,0.00021917,2]
[356840492,1743315039243,-500.0,0.00021917,2]
[356840493,1743315039252,-500.0,0.00021917,2]
[356840494,1743315039262,-500.0,0.00021917,2]
[356840495,1743315039271,-3122.67,0.00021917,2]
[356840496,1743315039280,-500.0,0.00021917,2]
[356840497,1743315039289,-7739.54,0.00021917,2]
[356840498,1743315039298,-500.0,0.00021917,2]
[356840499,1743315039308,-500.0,0.00021917,2]
[356840500,1743315039317,-603.19535295,0.00021917,2]
[356840501,1743315039327,-500.0,0.00021917,2]
[356840502,1743315039336,-3182.07,0.00021917,2]
[356840503,1743315039346,-500.0,0.00021917,2]
[356840504,1743315039357,-500.0,0.00021917,2]
[356840505,1743315039366,-1930.62,0.00021917,2]
[356840506,1743315039375,-500.0,0.00021917,2]
[356840507,1743315039385,-500.0,0.00021917,2]
[356840508,1743315039394,-500.0,0.00021917,2]
[356840509,1743315039403,-500.0,0.00021917,2]
[356840510,1743315039412,-500.0,0.00021917,2]
[356840511,1743315039422,-500.0,0.00021917,2]
[356840512,1743315039430,-500.0,0.00021917,2]
[356840513,1743315039439,-2957.02,0.00021917,2]
[356840514,1743315039449,-1285.47,0.00021917,2]
[356840515,1743315039458,-694.72,0.00021917,2]
[356840516,1743315039467,-162.380719,0.00021959,2]
[356840517,1743315039477,-31811.70684489,0.00022,2]
[356840518,1743315039486,-347.25659782,0.00022,2]
[356840519,1743315039495,-3816.7140611,0.00022014,30]
[356840520,1743315039504,-168.3888056,0.00022014,2]
[356840521,1743315039513,-550.64136661,0.00022018,2]
[356840522,1743315039522,-174.61919141,0.00022069,2]
[356840523,1743315039532,-181.08010149,0.00022124,2]
[356840524,1743315039542,-187.78006525,0.00022179,2]
[356840525,1743315039553,-500.0,0.00022191,2]
[356840526,1743315039563,-500.0,0.00022191,2]
[356840527,1743315039573,-497.16,0.00022191,2]
[356840528,1743315039583,-805.63,0.00022191,2]
[356840529,1743315039592,-1198.74,0.00022191,2]
[356840530,1743315039602,-500.0,0.00022191,2]
[356840531,1743315039611,-500.0,0.00022191,2]
[356840532,1743315039620,-595.08861299,0.00022191,2]
[356840533,1743315039629,-511.07,0.00022191,2]
[356840534,1743315039640,-500.0,0.00022191,2]
[356840535,1743315039649,-500.0,0.00022191,2]
[356840536,1743315039660,-500.0,0.00022191,2]
[356840537,1743315039672,-500.0,0.00022191,2]
[356840539,1743315039682,-500.0,0.00022191,2]
[356840541,1743315039693,-500.0,0.00022191,2]
[356840542,1743315039702,-622.10080749,0.00022191,2]
[356840543,1743315039712,-500.0,0.00022191,2]
[356840545,1743315039723,-500.0,0.00022191,2]
[356840546,1743315039732,-500.0,0.00022191,2]
[356840547,1743315039742,-500.0,0.00022191,2]
[356840548,1743315039751,-506.52040266,0.00022191,2]
[356840549,1743315039761,-1181.99,0.00022191,2]
[356840550,1743315039770,-500.0,0.00022191,2]
[356840551,1743315039780,-1013.72,0.00022191,2]
[356840552,1743315039789,-503.9367699,0.00022191,2]
[356840553,1743315039798,-710.19,0.00022191,2]
[356840554,1743315039807,-500.0,0.00022191,2]
[356840555,1743315039817,-500.0,0.00022191,2]
[356840556,1743315039826,-504.81072785,0.00022191,2]
[356840557,1743315039836,-683.18,0.00022191,2]
[356840558,1743315039845,-500.0,0.00022191,2]
[356840560,1743315039855,-527.94,0.00022191,2]
[356840562,1743315039864,-502.20892193,0.00022191,2]
[356840563,1743315039873,-500.0,0.00022191,2]
[356840564,1743315039882,-500.0,0.00022191,2]
[356840565,1743315039891,-538.75,0.00022191,2]
[356840566,1743315039900,-501.69128471,0.00022191,2]
[356840567,1743315039909,-500.0,0.00022191,2]
[356840568,1743315039918,-502.28814874,0.00022191,2]
[356840569,1743315039928,-1394.24,0.00022191,2]
[356840570,1743315039937,-398.64772302,0.00022191,2]
[356840571,1743315039947,-500.86779414,0.00022191,2]
[356840572,1743315039956,-592.88,0.00022191,2]
[356840573,1743315039965,-505.31013385,0.00022191,2]
[356840574,1743315039975,-500.0,0.00022191,2]
[356840575,1743315039984,-707.24,0.00022191,2]
[356840576,1743315039993,-500.0,0.00022191,2]
[356840577,1743315040002,-598.79,0.00022191,2]
[356840578,1743315040012,-500.0,0.00022191,2]
[356840579,1743315040021,-504.12,0.00022191,2]
[356840580,1743315040031,-500.0,0.00022191,2]
[356840581,1743315040040,-500.0,0.00022191,2]
[356840582,1743315040049,-911.95,0.00022191,2]
[356840583,1743315040059,-1475.35,0.00022191,2]
[356840584,1743315040068,-500.0,0.00022191,2]
[356840585,1743315040077,-500.0,0.00022191,2]
[356840586,1743315040086,-500.0,0.00022191,2]
[356840587,1743315040095,-1045.55,0.00022191,2]
[356840588,1743315040269,-500.0,0.00022191,2]
[356840589,1743315040278,-500.0,0.00022191,2]
[356840590,1743315040289,-500.0,0.00022191,2]
[356840591,1743315040298,-631.19,0.00022191,2]
[356840592,1743315040307,-500.0,0.00022191,2]
[356840593,1743315040316,-643.77360105,0.00022191,2]
[356840594,1743315040325,-500.0,0.00022191,2]
[356840595,1743315040334,-500.0,0.00022191,2]
[356840596,1743315040343,-500.0,0.00022191,2]
[356840597,1743315040352,-500.0,0.00022191,2]
[356840598,1743315040361,-500.0,0.00022191,2]
[356840599,1743315040370,-533.54,0.00022191,2]
[356840600,1743315040379,-650.81,0.00022191,2]
[356840601,1743315040389,-500.0,0.00022191,2]
[356840602,1743315040398,-500.0,0.00022191,2]
[356840603,1743315040407,-500.0,0.00022191,2]
[356840604,1743315040417,-1079.55,0.00022191,2]
[356840605,1743315040427,-500.0,0.00022191,2]
[356840606,1743315040437,-500.0,0.00022191,2]
[356840607,1743315040445,-500.0,0.00022191,2]
[356840608,1743315040454,-561.43,0.00022191,2]
[356840609,1743315040463,-500.0,0.00022191,2]
[356840610,1743315040471,-500.0,0.00022191,2]
[356840611,1743315040481,-825.74,0.00022191,2]
[356840612,1743315040490,-633.94,0.00022191,2]
[356840613,1743315040499,-500.0,0.00022191,2]
[356840614,1743315040508,-500.0,0.00022191,2]
[356840615,1743315040518,-500.0,0.00022191,2]
[356840616,1743315040527,-500.0,0.00022191,2]
[356840617,1743315040536,-500.0,0.00022191,2]
[356840618,1743315040545,-500.0,0.00022191,2]
[356840619,1743315040555,-500.0,0.00022191,2]
[356840620,1743315040564,-505.48480252,0.00022191,2]
[356840621,1743315040573,-500.0,0.00022191,2]
[356840622,1743315040582,-505.6039715,0.00022191,2]
[356840623,1743315040591,-500.0,0.00022191,2]
[356840624,1743315040601,-667.32,0.00022191,2]
[356840625,1743315040610,-765.47,0.00022191,2]
[356840626,1743315040619,-500.0,0.00022191,2]
[356840627,1743315040629,-505.4416735,0.00022191,2]
[356840628,1743315040638,-2033.7,0.00022191,2]
[356840629,1743315040647,-500.0,0.00022191,2]
[356840630,1743315040657,-505.24677465,0.00022191,2]
[356840631,1743315040667,-968.58,0.00022191,2]
[356840632,1743315040676,-1279.98,0.00022191,2]
[356840633,1743315040686,-1053.64,0.00022191,2]
[356840634,1743315040695,-500.0,0.00022191,2]
[356840635,1743315040705,-687.63,0.00022191,2]
[356840636,1743315040714,-500.0,0.00022191,2]
[356840637,1743315040724,-500.0,0.00022191,2]
[356840638,1743315040733,-500.0,0.00022191,2]
[356840639,1743315040743,-500.0,0.00022191,2]
[356840640,1743315040753,-1232.34,0.00022191,2]
[356840641,1743315040763,-506.98125125,0.00022191,2]
[356840642,1743315040772,-504.37344633,0.00022191,2]
[356840643,1743315040781,-1847.92,0.00022191,2]
[356840644,1743315040791,-1012.28,0.00022191,2]
[356840645,1743315040801,-500.0,0.00022191,2]
[356840646,1743315040810,-500.0,0.00022191,2]
[356840647,1743315040819,-730.85,0.00022191,2]
[356840648,1743315040829,-500.0,0.00022191,2]
[356840649,1743315040839,-521.95,0.00022191,2]
[356840650,1743315040849,-500.0,0.00022191,2]
[356840651,1743315040858,-509.66018494,0.00022191,2]
[356840652,1743315040869,-500.0,0.00022191,2]
[356840653,1743315040878,-705.45,0.00022191,2]
[356840654,1743315040888,-766.8,0.00022191,2]
[356840655,1743315040897,-500.0,0.00022191,2]
[356840656,1743315040907,-500.0,0.00022191,2]
[356840657,1743315040916,-888.36,0.00022191,2]
[356840658,1743315040926,-666.86,0.00022191,2]
[356840659,1743315040935,-500.0,0.00022191,2]
[356840660,1743315040944,-1732.1,0.00022191,2]
[356840661,1743315040954,-500.0,0.00022191,2]
[356840662,1743315040964,-502.5617566,0.00022191,2]
[356840663,1743315040973,-502.12495002,0.00022191,2]
[356840664,1743315040984,-1249.76,0.00022191,2]
[356840665,1743315040994,-500.0,0.00022191,2]
[356840666,1743315041003,-500.0,0.00022191,2]
[356840667,1743315041013,-592.98,0.00022191,2]
[356840668,1743315041023,-504.37,0.00022191,2]
[356840669,1743315041032,-500.0,0.00022191,2]
[356840670,1743315041042,-507.70956543,0.00022191,2]
[356840671,1743315041051,-500.0,0.00022191,2]
[356840672,1743315041060,-786.16,0.00022191,2]
[356840673,1743315041070,-500.0,0.00022191,2]
[356840674,1743315041080,-1522.9,0.00022191,2]
[356840675,1743315041089,-246.72,0.00022191,2]
[356840676,1743315041099,-680.46,0.00022191,2]
[356840677,1743315041109,-500.0,0.00022191,2]
[356840678,1743315041118,-634.6,0.00022191,2]
[356840679,1743315041127,-500.0,0.00022191,2]
[356840680,1743315041137,-500.0,0.00022191,2]
[356840681,1743315041146,-500.0,0.00022191,2]
[356840682,1743315041156,-531.35332919,0.00022191,2]
[356840683,1743315041168,-836.42,0.00022191,2]
[356840684,1743315041178,-2847.89,0.00022191,2]
[356840685,1743315041188,-500.0,0.00022191,2]
[356840686,1743315041197,-500.0,0.00022191,2]
[356840687,1743315041207,-796.66,0.00022191,2]
[356840688,1743315041216,-500.0,0.00022191,2]
[356840689,1743315041226,-500.0,0.00022191,2]
[356840690,1743315041235,-2149.46,0.00022191,2]
[356840691,1743315041246,-500.0,0.00022191,2]
[356840692,1743315041256,-500.0,0.00022191,2]
[356840693,1743315041266,-500.0,0.00022191,2]
[356840694,1743315041275,-1222.99,0.00022191,2]
[356840695,1743315041284,-851.43,0.00022191,2]
[356840696,1743315041294,-500.0,0.00022191,2]
[356840697,1743315041303,-1069.42,0.00022191,2]
[356840698,1743315041312,-500.0,0.00022191,2]
[356840699,1743315041322,-1034.5,0.00022191,2]
[356840700,1743315041332,-500.0,0.00022191,2]
[356840701,1743315041341,-500.0,0.00022191,2]
[356840702,1743315041351,-500.0,0.00022191,2]
[356840703,1743315041361,-500.0,0.00022191,2]
[356840704,1743315041370,-500.0,0.00022191,2]
[356840705,1743315041379,-2999.45,0.00022191,2]
[356840706,1743315041389,-500.0,0.00022191,2]
[356840707,1743315041398,-500.0,0.00022191,2]
[356840708,1743315041408,-524.3,0.00022191,2]
[356840709,1743315041417,-503.07564364,0.00022191,2]
[356840710,1743315041427,-500.0,0.00022191,2]
[356840711,1743315041436,-2766.98,0.00022191,2]
[356840712,1743315041445,-594.5,0.00022191,2]
[356840713,1743315041455,-500.0,0.00022191,2]
[356840714,1743315041464,-500.0,0.00022191,2]
[356840715,1743315041473,-668.89,0.00022191,2]
[356840716,1743315041482,-718.12,0.00022191,2]
[356840717,1743315041492,-500.0,0.00022191,2]
[356840718,1743315041501,-525.41,0.00022191,2]
[356840719,1743315041510,-656.24,0.00022191,2]
[356840720,1743315041519,-500.0,0.00022191,2]
[356840721,1743315041529,-1391.8,0.00022191,2]
[356840722,1743315041538,-500.0,0.00022191,2]
[356840723,1743315041547,-500.0,0.00022191,2]
[356840724,1743315041557,-500.0,0.00022191,2]
[356840725,1743315041566,-1460.07,0.00022191,2]
[356840726,1743315041576,-500.0,0.00022191,2]
[356840727,1743315041585,-500.0,0.00022191,2]
[356840728,1743315041595,-500.0,0.00022191,2]
[356840729,1743315041604,-500.0,0.00022191,2]
[356840730,1743315041613,-1287.81,0.00022191,2]
[356840731,1743315041623,-549.16,0.00022191,2]
[356840732,1743315041632,-382.64437432,0.00022191,2]
[356840733,1743315041642,-1475.91,0.00022191,2]
[356840734,1743315041652,-500.0,0.00022191,2]
[356840735,1743315041661,-1346.2,0.00022191,2]
[356840736,1743315041671,-623.25,0.00022191,2]
[356840737,1743315041680,-708.26,0.00022191,2]
[356840738,1743315041689,-1461.03,0.00022191,2]
[356840739,1743315041699,-678.89,0.00022191,2]
[356840740,1743315041708,-500.0,0.00022191,2]
[356840741,1743315041717,-1620.73,0.00022191,2]
[356840742,1743315041727,-804.96,0.00022191,2]
[356840743,1743315041736,-500.0,0.00022191,2]
[356840744,1743315041745,-1099.28,0.00022191,2]
[356840745,1743315041754,-1169.63,0.00022191,2]
[356840746,1743315041763,-500.0,0.00022191,2]
[356840747,1743315041772,-1064.42,0.00022191,2]
[356840748,1743315041781,-613.43973635,0.00022191,2]
[356840749,1743315041791,-500.0,0.00022191,2]
[356840750,1743315041801,-2207.55,0.00022191,2]
[356840751,1743315041810,-512.26868134,0.00022191,2]
[356840752,1743315041819,-500.0,0.00022191,2]
[356840753,1743315041828,-583.57,0.00022191,2]
[356840754,1743315041837,-655.94,0.00022191,2]
[356840755,1743315041847,-500.0,0.00022191,2]
[356840756,1743315041856,-797.65,0.00022191,2]
[356840757,1743315041866,-1372.78,0.00022191,2]
[356840758,1743315041875,-500.0,0.00022191,2]
[356840759,1743315041885,-458.15357215,0.00022191,2]
[356840760,1743315041894,-1398.16,0.00022191,2]
[356840761,1743315041903,-756.19,0.00022191,2]
[356840762,1743315041912,-995.76,0.00022191,2]
[356840763,1743315041922,-500.0,0.00022191,2]
[356840764,1743315041931,-500.0,0.00022191,2]
[356840765,1743315041940,-500.0,0.00022191,2]
[356840766,1743315041949,-594.06,0.00022191,2]
[356840767,1743315041958,-500.0,0.00022191,2]
[356840768,1743315041967,-2016.75,0.00022191,2]
[356840769,1743315041977,-500.0,0.00022191,2]
[356840770,1743315041986,-500.0,0.00022191,2]
[356840771,1743315041995,-500.0,0.00022191,2]
[356840772,1743315042004,-846.91,0.00022191,2]
[356840773,1743315042013,-2091.96,0.00022191,2]
[356840774,1743315042023,-500.0,0.00022191,2]
[356840775,1743315042032,-501.80417489,0.00022191,2]
[356840776,1743315042042,-500.0,0.00022191,2]
[356840777,1743315042051,-500.0,0.00022191,2]
[356840778,1743315042060,-500.0,0.00022191,2]
[356840779,1743315042069,-500.0,0.00022191,2]
[356840780,1743315042078,-500.0,0.00022191,2]
[356840781,1743315042087,-624.54,0.00022191,2]
[356840782,1743315042097,-888.96,0.00022191,2]
[356840783,1743315042106,-3890.28,0.00022191,2]
[356840784,1743315042115,-507.28313774,0.00022191,2]
[356840785,1743315042125,-504.33632362,0.00022191,2]
[356840786,1743315042134,-500.0,0.00022191,2]
[356840787,1743315042143,-500.0,0.00022191,2]
[356840788,1743315042152,-720.62,0.00022191,2]
[356840789,1743315042162,-500.0,0.00022191,2]
[356840790,1743315042175,-500.0,0.00022191,2]
[356840791,1743315042184,-500.0,0.00022191,2]
[356840792,1743315042193,-1147.18,0.00022191,2]
[356840793,1743315042202,-500.0,0.00022191,2]
[356840794,1743315042212,-615.56,0.00022191,2]
[356840795,1743315042222,-724.48,0.00022191,2]
[356840796,1743315042231,-565.23,0.00022191,2]
[356840797,1743315042240,-7623.71,0.00022191,2]
[356840798,1743315042250,-500.0,0.00022191,2]
[356840799,1743315042260,-1181.86,0.00022191,2]
[356840800,1743315042269,-500.0,0.00022191,2]
[356840801,1743315042279,-542.09,0.00022191,2]
[356840802,1743315042288,-518.99,0.00022191,2]
[356840803,1743315042297,-500.0,0.00022191,2]
[356840804,1743315042306,-741.76,0.00022191,2]
[356840805,1743315042315,-500.0,0.00022191,2]
[356840806,1743315042324,-1001.17,0.00022191,2]
[356840807,1743315042334,-1281.88,0.00022191,2]
[356840808,1743315042343,-500.0,0.00022191,2]
[356840809,1743315042352,-500.0,0.00022191,2]
[356840810,1743315042361,-500.0,0.00022191,2]
[356840811,1743315042370,-500.0,0.00022191,2]
[356840812,1743315042379,-500.0,0.00022191,2]
[356840813,1743315042388,-575.0,0.00022191,2]
[356840814,1743315042397,-500.0,0.00022191,2]
[356840815,1743315042406,-593.80641568,0.00022191,2]
[356840816,1743315042415,-500.0,0.00022191,2]
[356840817,1743315042424,-583.40344888,0.00022191,2]
[356840818,1743315042433,-500.0,0.00022191,2]
[356840819,1743315042443,-500.0,0.00022191,2]
[356840820,1743315042452,-500.0,0.00022191,2]
[356840821,1743315042461,-2273.0,0.00022191,2]
[356840822,1743315042470,-509.55127794,0.00022191,2]
[356840823,1743315042479,-500.0,0.00022191,2]
[356840824,1743315042488,-516.91,0.00022191,2]
[356840825,1743315042497,-510.77827985,0.00022191,2]
[356840826,1743315042506,-5850.88,0.00022191,2]
[356840827,1743315042515,-500.0,0.00022191,2]
[356840828,1743315042524,-500.0,0.00022191,2]
[356840829,1743315042533,-521.18814649,0.00022191,2]
[356840830,1743315042542,-500.0,0.00022191,2]
[356840831,1743315042551,-500.0,0.00022191,2]
[356840832,1743315042560,-500.0,0.00022191,2]
[356840833,1743315042570,-500.0,0.00022191,2]
[356840834,1743315042580,-9544.02,0.00022191,2]
[356840835,1743315042589,-500.0,0.00022191,2]
[356840836,1743315042598,-5143.55,0.00022191,2]
[356840837,1743315042607,-1144.89,0.00022191,2]
[356840838,1743315042616,-500.0,0.00022191,2]
[356840839,1743315042625,-500.0,0.00022191,2]
[356840840,1743315042635,-500.0,0.00022191,2]
[356840841,1743315042643,-3665.5,0.00022191,2]
[356840842,1743315042652,-20044.28,0.00022191,2]
[356840843,1743315042662,-743.8,0.00022191,2]
[356840844,1743315042671,-521.95,0.00022191,2]
[356840845,1743315042680,-9138.2,0.00022191,2]
[356840846,1743315042689,-3627.27,0.00022191,2]
[356840847,1743315042698,-500.0,0.00022191,2]
[356840848,1743315042707,-500.0,0.00022191,2]
[356840850,1743315042717,-500.0,0.00022191,2]
[356840851,1743315042727,-185.83605836,0.00022191,2]
[356840852,1743315042736,-3751.57,0.00022191,2]
[356840853,1743315042745,-1367.69,0.00022191,2]
[356840854,1743315042754,-1074.5,0.00022191,2]
[356840857,1743315042921,-812.1,0.00022191,2]
[356840858,1743315042931,-1217.3,0.00022191,2]
[356840859,1743315042942,-6569.05,0.00022191,2]
[356840860,1743315042951,-500.0,0.00022191,2]
[356840861,1743315042961,-925.42,0.00022191,2]
[356840862,1743315042970,-500.0,0.00022191,2]
[356840863,1743315042979,-1626.85,0.00022191,2]
[356840864,1743315042989,-500.0,0.00022191,2]
[356840866,1743315042998,-1697.03,0.00022191,2]
[356840867,1743315043007,-500.0,0.00022191,2]
[356840868,1743315043017,-500.0,0.00022191,2]
[356840869,1743315043026,-986.69,0.00022191,2]
[356840870,1743315043035,-2514.28,0.00022191,2]
[356840871,1743315043044,-500.0,0.00022191,2]
[356840872,1743315043054,-505.57466442,0.00022191,2]
[356840873,1743315043063,-19479.26,0.00022191,2]
[356840874,1743315043072,-728.09,0.00022191,2]
[356840875,1743315043081,-1767.69,0.00022191,2]
[356840876,1743315043091,-10859.73,0.00022191,2]
[356840877,1743315043100,-181.18384364,0.00022191,2]
[356840879,1743315043109,-500.0,0.00022191,2]
[356840881,1743315043119,-500.0,0.00022191,2]
[356840882,1743315043128,-1165.9,0.00022191,2]
[356840883,1743315043138,-104658.97,0.00022191,2]
[356840884,1743315043147,-500.0,0.00022191,2]
[356840885,1743315043156,-500.0,0.00022191,2]
[356840886,1743315043168,-1199.89,0.00022191,2]
[356840887,1743315043177,-648.71,0.00022191,2]
[356840888,1743315043187,-1247.21,0.00022191,2]
[356840889,1743315043196,-7967.4,0.00022191,2]
[356840890,1743315043206,-501.84566521,0.00022191,2]
[356840891,1743315043215,-500.0,0.00022191,2]
[356840892,1743315043224,-1282.84,0.00022191,2]
[356840893,1743315043234,-873.53,0.00022191,2]
[356840894,1743315043243,-500.0,0.00022191,2]
[356840895,1743315043253,-556.19,0.00022191,2]
[356840896,1743315043262,-500.0,0.00022191,2]
[356840897,1743315043271,-500.0,0.00022191,2]
[356840898,1743315043281,-2444.57,0.00022191,2]
[356840899,1743315043290,-507.40939017,0.00022191,2]
[356840900,1743315043299,-500.0,0.00022191,2]
[356840901,1743315043309,-500.0,0.00022191,2]
[356840902,1743315043318,-3228.4,0.00022191,2]
[356840903,1743315043328,-581.5,0.00022191,2]
[356840905,1743315043337,-5124.84,0.00022191,2]
[356840907,1743315043346,-500.0,0.00022191,2]
[356840908,1743315043355,-500.0,0.00022191,2]
[356840910,1743315043365,-5055.18,0.00022191,2]
[356840911,1743315043375,-1837.99,0.00022191,2]
[356840912,1743315043384,-500.0,0.00022191,2]
[356840913,1743315043393,-877.28,0.00022191,2]
[356840914,1743315043403,-500.0,0.00022191,2]
[356840915,1743315043412,-1161.8,0.00022191,2]
[356840916,1743315043421,-504.9182926,0.00022191,2]
[356840917,1743315043431,-500.0,0.00022191,2]
[356840918,1743315043441,-962.91,0.00022191,2]
[356840919,1743315043451,-500.0,0.00022191,2]
[356840920,1743315043460,-568.01,0.00022191,2]
[356840921,1743315043469,-7405.61,0.00022191,2]
[356840922,1743315043479,-5389.14,0.00022191,2]
[356840923,1743315043489,-601.35,0.00022191,2]
[356840924,1743315043498,-20960.86,0.00022191,2]
[356840925,1743315043507,-508.75212156,0.00022191,2]
[356840926,1743315043517,-2576.23,0.00022191,2]
[356840927,1743315043526,-999.46,0.00022191,2]
[356840928,1743315043536,-507.96,0.00022191,2]
[356840929,1743315043545,-500.0,0.00022191,2]
[356840931,1743315043555,-500.0,0.00022191,2]
[356840932,1743315043564,-613.85,0.00022191,2]
[356840933,1743315043574,-500.0,0.00022191,2]
[356840934,1743315043583,-500.0,0.00022191,2]
[356840935,1743315043593,-1042.09,0.00022191,2]
[356840936,1743315043602,-1050.22,0.00022191,2]